Workbook

Sheet Forecast input
B2: HLP Manufacturing INC
B3: Sales forecast
B4: Confidential
B6: Opportunity name | C6: Sales agent | D6: Sales region | E6: Sales category | F6: Forecast amount | G6: Sales phase | H6: Probability of sale | I6: Forecast close | J6: Weighted forecast
B7: Adatum Corporation | C7: Rowan Murphy | D7: US - Northeast | E7: Consulting | F7: $150,000 | G7: Formal approval | H7: 90% | I7: =DATE(YEAR(TODAY())+1,1,1) -> 2024-01-01 | J7: =Table_ForecastInput[[#This Row],[Forecast amount]]*Table_ForecastInput[[#This Row],[Probability of sale]] -> $135,000
B8: Adventure Works | C8: Miho Kojima | D8: US - Southeast | E8: Products | F8: $145,200 | G8: Opportunity | H8: 10% | I8: =DATE(YEAR(TODAY())+1,2,1) -> 2024-02-01 | J8: =Table_ForecastInput[[#This Row],[Forecast amount]]*Table_ForecastInput[[#This Row],[Probability of sale]] -> $14,520
B9: Alpine Ski House | C9: Cora Thomas | D9: US - North Central | E9: Training | F9: $162,500 | G9: Identified need | H9: 20% | I9: =DATE(YEAR(TODAY())+1,3,1) -> 2024-03-01 | J9: =Table_ForecastInput[[#This Row],[Forecast amount]]*Table_ForecastInput[[#This Row],[Probability of sale]] -> $32,500
B10: Baldwin Museum of Science | C10: Ellis Turner | D10: US - South Central | E10: Mixture | F10: $147,500 | G10: Sponsorship | H10: 30% | I10: =DATE(YEAR(TODAY())+1,4,1) -> 2024-04-01 | J10: =Table_ForecastInput[[#This Row],[Forecast amount]]*Table_ForecastInput[[#This Row],[Probability of sale]] -> $44,250
B11: Blue Yonder Airlines | C11: Suma Kini | D11: US - Northwest | E11: Prof. services | F11: $148,000 | G11: Budget validated | H11: 40% | I11: =DATE(YEAR(TODAY())+1,5,1) -> 2024-05-01 | J11: =Table_ForecastInput[[#This Row],[Forecast amount]]*Table_ForecastInput[[#This Row],[Probability of sale]] -> $59,200
B12: City Power & Light | C12: Rowan Murphy | D12: US - Southwest | E12: Support | F12: $175,000 | G12: Needs analysis | H12: 50% | I12: =DATE(YEAR(TODAY())+1,6,1) -> 2024-06-01 | J12: =Table_ForecastInput[[#This Row],[Forecast amount]]*Table_ForecastInput[[#This Row],[Probability of sale]] -> $87,500
B13: Coho Vineyard | C13: Cora Thomas | D13: Canada - East | E13: Mixture | F13: $149,000 | G13: Solution proposed | H13: 60% | I13: =DATE(YEAR(TODAY())+1,7,1) -> 2024-07-01 | J13: =Table_ForecastInput[[#This Row],[Forecast amount]]*Table_ForecastInput[[#This Row],[Probability of sale]] -> $89,400
B14: Coho Winery | C14: Suma Kini | D14: Canada - West | E14: Training | F14: $142,000 | G14: Written proposal | H14: 70% | I14: =DATE(YEAR(TODAY())+1,8,1) -> 2024-08-01 | J14: =Table_ForecastInput[[#This Row],[Forecast amount]]*Table_ForecastInput[[#This Row],[Probability of sale]] -> $99,400
B15: Contoso, Ltd. | C15: Cora Thomas | D15: EMEA - France | E15: Mixture | F15: $172,500 | G15: Verbal approval | H15: 90% | I15: =DATE(YEAR(TODAY())+1,10,1) -> 2024-10-01 | J15: =Table_ForecastInput[[#This Row],[Forecast amount]]*Table_ForecastInput[[#This Row],[Probability of sale]] -> $155,250
B16: Contoso Pharmaceuticals | C16: Ellis Turner | D16: EMEA - Germany | E16: Products | F16: $163,500 | G16: Sponsorship | H16: 20% | I16: =DATE(YEAR(TODAY())+1,11,1) -> 2024-11-01 | J16: =Table_ForecastInput[[#This Row],[Forecast amount]]*Table_ForecastInput[[#This Row],[Probability of sale]] -> $32,700
B17: Consolidated Messenger | C17: Suma Kini | D17: EMEA - Italy | E17: Products | F17: $155,500 | G17: Formal approval | H17: 100% | I17: =DATE(YEAR(TODAY())+1,12,1) -> 2024-12-01 | J17: =Table_ForecastInput[[#This Row],[Forecast amount]]*Table_ForecastInput[[#This Row],[Probability of sale]] -> $155,500
B18: Fabrikam, Inc. | C18: Ellis Turner | D18: EMEA - Other | E18: Consulting | F18: $166,000 | G18: Opportunity | H18: 10% | I18: =DATE(YEAR(TODAY())+1,1,1) -> 2024-01-01 | J18: =Table_ForecastInput[[#This Row],[Forecast amount]]*Table_ForecastInput[[#This Row],[Probability of sale]] -> $16,600
B19: Fourth Coffee | C19: Cora Thomas | D19: APSA - Asia | E19: Training | F19: $180,000 | G19: Budget validated | H19: 30% | I19: =DATE(YEAR(TODAY())+1,3,1) -> 2024-03-01 | J19: =Table_ForecastInput[[#This Row],[Forecast amount]]*Table_ForecastInput[[#This Row],[Probability of sale]] -> $54,000
B20: Graphic Design Institute | C20: Miho Kojima | D20: APSA - Pacific | E20: Services | F20: $140,000 | G20: Solution proposed | H20: 60% | I20: =DATE(YEAR(TODAY())+1,5,1) -> 2024-05-01 | J20: =Table_ForecastInput[[#This Row],[Forecast amount]]*Table_ForecastInput[[#This Row],[Probability of sale]] -> $84,000
B21: Humongous Insurance | C21: Rowan Murphy | D21: APSA - Mexico | E21: Support | F21: $155,000 | G21: Sponsorship | H21: 30% | I21: =DATE(YEAR(TODAY())+1,6,1) -> 2024-06-01 | J21: =Table_ForecastInput[[#This Row],[Forecast amount]]*Table_ForecastInput[[#This Row],[Probability of sale]] -> $46,500
B22: Litware, Inc. | C22: Miho Kojima | D22: APSA - Australia | E22: Prof. services | F22: $173,200 | G22: Needs analysis | H22: 50% | I22: =DATE(YEAR(TODAY())+1,10,1) -> 2024-10-01 | J22: =Table_ForecastInput[[#This Row],[Forecast amount]]*Table_ForecastInput[[#This Row],[Probability of sale]] -> $86,600
B23: Lucerne Publishing | C23: Suma Kini | D23: APSA - Other | E23: Services | F23: $146,500 | G23: Solution proposed | H23: 60% | I23: =DATE(YEAR(TODAY())+1,12,1) -> 2024-12-01 | J23: =Table_ForecastInput[[#This Row],[Forecast amount]]*Table_ForecastInput[[#This Row],[Probability of sale]] -> $87,900
B24: Margie's Travel | C24: Ellis Turner | D24: US - Northeast | E24: Support | F24: $156,750 | G24: Written proposal | H24: 70% | I24: =DATE(YEAR(TODAY())+1,11,1) -> 2024-11-01 | J24: =Table_ForecastInput[[#This Row],[Forecast amount]]*Table_ForecastInput[[#This Row],[Probability of sale]] -> $109,725
B25: Northwind Traders | C25: Cora Thomas | D25: US - South Central | E25: Prof. Services | F25: $162,000 | G25: Verbal approval | H25: 90% | I25: =DATE(YEAR(TODAY())+1,2,1) -> 2024-02-01 | J25: =Table_ForecastInput[[#This Row],[Forecast amount]]*Table_ForecastInput[[#This Row],[Probability of sale]] -> $145,800
B26: Proseware, Inc. | C26: Ellis Turner | D26: Canada - East | E26: Mixture | F26: $157,000 | G26: Formal approval | H26: 100% | I26: =DATE(YEAR(TODAY())+1,3,1) -> 2024-03-01 | J26: =Table_ForecastInput[[#This Row],[Forecast amount]]*Table_ForecastInput[[#This Row],[Probability of sale]] -> $157,000
B27: School of Fine Art | C27: Miho Kojima | D27: EMEA - France | E27: Services | F27: $173,000 | G27: Budget validated | H27: 40% | I27: =DATE(YEAR(TODAY())+1,4,1) -> 2024-04-01 | J27: =Table_ForecastInput[[#This Row],[Forecast amount]]*Table_ForecastInput[[#This Row],[Probability of sale]] -> $69,200
B28: Southridge Video | C28: Suma Kini | D28: EMEA - UK | E28: Mixture | F28: $171,000 | G28: Needs analysis | H28: 50% | I28: =DATE(YEAR(TODAY())+1,8,1) -> 2024-08-01 | J28: =Table_ForecastInput[[#This Row],[Forecast amount]]*Table_ForecastInput[[#This Row],[Probability of sale]] -> $85,500
B29: Tailspin Toys | C29: Rowan Murphy | D29: APSA - Australia | E29: Products | F29: $168,000 | G29: Solution proposed | H29: 60% | I29: =DATE(YEAR(TODAY())+1,9,1) -> 2024-09-01 | J29: =Table_ForecastInput[[#This Row],[Forecast amount]]*Table_ForecastInput[[#This Row],[Probability of sale]] -> $100,800

Sheet Sales forecast
B2: =CompanyName -> HLP Manufacturing INC
B3: Forecast graph
B4: Confidential
B5: Starting month | C5: =DATE(YEAR(TODAY())+1,1,1) -> 2024-01-01
B6: Month | C6: Monthly forecast | D6: Cumulative | P6: =B6 -> Month | Q6: Monthly Forecast | R6: Cumulative
B7: =DATE(YEAR(Starting_Month),MONTH(Starting_Month)+0,1) -> 2024-01-01 | C7: =SUMIFS(Table_ForecastInput[Weighted forecast],Table_ForecastInput[Forecast close],">="&'Sales forecast'!B7,Table_ForecastInput[Forecast close],"<="&DATE(YEAR('Sales forecast'!B7),MONTH('Sales forecast'!B7)+1,0)) -> $151,600 | D7: =IF(ISNUMBER(D6),D6+C7,C7) -> $151,600 | P7: =B7 -> 2024-01-01 | Q7: =C7 -> $151,600 | R7: =D7-C7 -> 0
B8: =DATE(YEAR(Starting_Month),MONTH(Starting_Month)+1,1) -> 2024-02-01 | C8: =SUMIFS(Table_ForecastInput[Weighted forecast],Table_ForecastInput[Forecast close],">="&'Sales forecast'!B8,Table_ForecastInput[Forecast close],"<="&DATE(YEAR('Sales forecast'!B8),MONTH('Sales forecast'!B8)+1,0)) -> $160,320 | D8: $311,920 | P8: 2024-02-01 | Q8: =C8 -> $160,320 | R8: =D8-C8 -> $151,600
B9: =DATE(YEAR(Starting_Month),MONTH(Starting_Month)+2,1) -> 2024-03-01 | C9: =SUMIFS(Table_ForecastInput[Weighted forecast],Table_ForecastInput[Forecast close],">="&'Sales forecast'!B9,Table_ForecastInput[Forecast close],"<="&DATE(YEAR('Sales forecast'!B9),MONTH('Sales forecast'!B9)+1,0)) -> $243,500 | D9: $555,420 | P9: 2024-03-01 | Q9: $243,500 | R9: $311,920
B10: =DATE(YEAR(Starting_Month),MONTH(Starting_Month)+3,1) -> 2024-04-01 | C10: =SUMIFS(Table_ForecastInput[Weighted forecast],Table_ForecastInput[Forecast close],">="&'Sales forecast'!B10,Table_ForecastInput[Forecast close],"<="&DATE(YEAR('Sales forecast'!B10),MONTH('Sales forecast'!B10)+1,0)) -> $113,450 | D10: $668,870 | P10: 2024-04-01 | Q10: $113,450 | R10: $555,420
B11: =DATE(YEAR(Starting_Month),MONTH(Starting_Month)+4,1) -> 2024-05-01 | C11: =SUMIFS(Table_ForecastInput[Weighted forecast],Table_ForecastInput[Forecast close],">="&'Sales forecast'!B11,Table_ForecastInput[Forecast close],"<="&DATE(YEAR('Sales forecast'!B11),MONTH('Sales forecast'!B11)+1,0)) -> $143,200 | D11: $812,070 | P11: 2024-05-01 | Q11: $143,200 | R11: $668,870
B12: =DATE(YEAR(Starting_Month),MONTH(Starting_Month)+5,1) -> 2024-06-01 | C12: =SUMIFS(Table_ForecastInput[Weighted forecast],Table_ForecastInput[Forecast close],">="&'Sales forecast'!B12,Table_ForecastInput[Forecast close],"<="&DATE(YEAR('Sales forecast'!B12),MONTH('Sales forecast'!B12)+1,0)) -> $134,000 | D12: $946,070 | P12: 2024-06-01 | Q12: $134,000 | R12: $812,070
B13: =DATE(YEAR(Starting_Month),MONTH(Starting_Month)+6,1) -> 2024-07-01 | C13: =SUMIFS(Table_ForecastInput[Weighted forecast],Table_ForecastInput[Forecast close],">="&'Sales forecast'!B13,Table_ForecastInput[Forecast close],"<="&DATE(YEAR('Sales forecast'!B13),MONTH('Sales forecast'!B13)+1,0)) -> $89,400 | D13: $1,035,470 | P13: 2024-07-01 | Q13: $89,400 | R13: $946,070
B14: =DATE(YEAR(Starting_Month),MONTH(Starting_Month)+7,1) -> 2024-08-01 | C14: =SUMIFS(Table_ForecastInput[Weighted forecast],Table_ForecastInput[Forecast close],">="&'Sales forecast'!B14,Table_ForecastInput[Forecast close],"<="&DATE(YEAR('Sales forecast'!B14),MONTH('Sales forecast'!B14)+1,0)) -> $184,900 | D14: $1,220,370 | P14: 2024-08-01 | Q14: $184,900 | R14: $1,035,470
B15: =DATE(YEAR(Starting_Month),MONTH(Starting_Month)+8,1) -> 2024-09-01 | C15: =SUMIFS(Table_ForecastInput[Weighted forecast],Table_ForecastInput[Forecast close],">="&'Sales forecast'!B15,Table_ForecastInput[Forecast close],"<="&DATE(YEAR('Sales forecast'!B15),MONTH('Sales forecast'!B15)+1,0)) -> $100,800 | D15: $1,321,170 | P15: 2024-09-01 | Q15: $100,800 | R15: $1,220,370
B16: =DATE(YEAR(Starting_Month),MONTH(Starting_Month)+9,1) -> 2024-10-01 | C16: =SUMIFS(Table_ForecastInput[Weighted forecast],Table_ForecastInput[Forecast close],">="&'Sales forecast'!B16,Table_ForecastInput[Forecast close],"<="&DATE(YEAR('Sales forecast'!B16),MONTH('Sales forecast'!B16)+1,0)) -> $241,850 | D16: $1,563,020 | P16: 2024-10-01 | Q16: $241,850 | R16: $1,321,170
B17: =DATE(YEAR(Starting_Month),MONTH(Starting_Month)+10,1) -> 2024-11-01 | C17: =SUMIFS(Table_ForecastInput[Weighted forecast],Table_ForecastInput[Forecast close],">="&'Sales forecast'!B17,Table_ForecastInput[Forecast close],"<="&DATE(YEAR('Sales forecast'!B17),MONTH('Sales forecast'!B17)+1,0)) -> $142,425 | D17: $1,705,445 | P17: 2024-11-01 | Q17: $142,425 | R17: $1,563,020
B18: =DATE(YEAR(Starting_Month),MONTH(Starting_Month)+11,1) -> 2024-12-01 | C18: =SUMIFS(Table_ForecastInput[Weighted forecast],Table_ForecastInput[Forecast close],">="&'Sales forecast'!B18,Table_ForecastInput[Forecast close],"<="&DATE(YEAR('Sales forecast'!B18),MONTH('Sales forecast'!B18)+1,0)) -> $243,400 | D18: $1,948,845 | P18: 2024-12-01 | Q18: $243,400 | R18: $1,705,445

Sheet Lists
B2: =CompanyName -> HLP Manufacturing INC
B3: Sales Lists
B4: Confidential
B6: Sales agents | C6: Sales regions | D6: Sales categories | E6: Sales phases
B7: Rowan Murphy | C7: US - Northeast | D7: Consulting | E7: Identified need
B8: Miho Kojima | C8: US - Southeast | D8: Mixture | E8: Opportunity
B9: Cora Thomas | C9: US - North Central | D9: Products | E9: Needs analysis
B10: Ellis Turner | C10: US - South Central | D10: Prof. services | E10: Solution proposed
B11: Suma Kini | C11: US - Northwest | D11: Services | E11: Written proposal
C12: US - Southwest | D12: Support | E12: Verbal approval
C13: Canada - East | D13: Training | E13: Formal approval
C14: Canada - West | E14: Budget validated
C15: EMEA - France | E15: Sponsorship
C16: EMEA - Germany
C17: EMEA - Italy
C18: EMEA - Other
C19: APSA - Asia
C20: APSA - Pacific
C21: APSA - Mexico
C22: APSA - Australia
C23: APSA - Other
C24: EMEA - UK
